fUSD/lending_fUSD_20241116
["ID","MTS","AMOUNT","RATE_DAILY","PERIOD"]
[342390375,1731783085156,-150.0,9.833e-05,2]
[342390376,1731783085166,-150.0,9.836e-05,2]
[342390377,1731783085176,-1500.0,9.84e-05,2]
[342390378,1731783085185,-150.0,9.841e-05,2]
[342390379,1731783085195,-150.0,9.841e-05,2]
[342390380,1731783085205,-1500.0,9.846e-05,2]
[342390381,1731783085267,-150.0,9.851e-05,2]
[342390382,1731783085277,-150.0,9.853e-05,2]
[342390383,1731783085287,-150.0,9.855e-05,2]
[342390384,1731783085297,-150.0,9.856e-05,2]
[342390385,1731783085307,-150.0,9.856e-05,2]
[342390386,1731783085316,-150.0,9.857e-05,2]
[342390387,1731783085326,-150.0,9.858e-05,2]
[342390388,1731783085336,-150.0,9.859e-05,2]
[342390389,1731783085346,-150.0,9.864e-05,2]
[342390390,1731783085356,-150.0,9.864e-05,2]
[342390391,1731783085366,-150.0,9.872e-05,2]
[342390392,1731783085375,-150.0,9.876e-05,2]
[342390393,1731783085385,-150.0,9.877e-05,2]
[342390394,1731783085395,-150.0,9.878e-05,2]
[342390395,1731783085404,-150.0,9.879e-05,2]
[342390396,1731783085414,-150.0,9.879e-05,2]
[342390397,1731783085424,-150.0,9.881e-05,2]
[342390398,1731783085433,-150.0,9.886e-05,2]
[342390399,1731783085442,-150.0,9.888e-05,2]
[342390400,1731783085453,-150.0,9.888e-05,2]
[342390401,1731783085469,-150.0,9.892e-05,2]
[342390402,1731783085479,-150.0,9.893e-05,2]
[342390403,1731783085489,-150.0,9.894e-05,2]
[342390404,1731783085499,-150.0,9.895e-05,2]
[342390405,1731783085510,-150.0,9.898e-05,2]
[342390406,1731783085520,-3147.79,9.9e-05,2]
[342390407,1731783085529,-1700.0,9.9e-05,3]
[342390408,1731783085541,-150.0,9.904e-05,2]
[342390409,1731783085551,-150.0,9.905e-05,2]
[342390410,1731783085560,-1500.0,9.907e-05,2]
[342390411,1731783085570,-7774.09873675,9.91e-05,2]
[342390412,1731783085579,-150.0,9.91e-05,2]
[342390413,1731783085589,-150.0,9.918e-05,2]
[342390414,1731783085600,-150.0,9.918e-05,2]
[342390415,1731783085610,-150.0,9.92e-05,2]
[342390416,1731783085619,-150.0,9.92e-05,2]
[342390417,1731783085630,-445.74,9.92e-05,2]
[342390418,1731783085643,-150.0,9.921e-05,2]
[342390419,1731783085652,-150.0,9.928e-05,2]
[342390420,1731783085661,-150.0,9.929e-05,2]
[342390421,1731783085671,-150.0,9.935e-05,2]
[342390422,1731783085681,-1000.0,9.937e-05,2]
[342390423,1731783085691,-790.77513023,9.939e-05,2]
[342390424,1731783085700,-150.0,9.941e-05,2]
[342390425,1731783085709,-150.0,9.946e-05,2]
[342390426,1731783085721,-150.0,9.947e-05,2]
[342390427,1731783085731,-150.0,9.947e-05,2]
[342390428,1731783085741,-1006.73377055,9.954e-05,2]
[342390429,1731783085751,-679.55,9.956e-05,2]
[342390430,1731783085760,-500.0,9.956e-05,2]
[342390431,1731783085770,-512.84,9.956e-05,2]
[342390432,1731783085780,-500.0,9.956e-05,2]
[342390433,1731783085789,-650.09,9.956e-05,2]
[342390434,1731783085799,-500.0,9.956e-05,2]
[342390435,1731783085808,-500.0,9.956e-05,2]
[342390436,1731783085818,-500.0,9.956e-05,2]
[342390437,1731783085828,-500.0,9.956e-05,2]
[342390438,1731783085837,-599.57,9.956e-05,2]
[342390439,1731783085846,-500.0,9.956e-05,2]
[342390440,1731783085857,-500.0,9.956e-05,2]
[342390441,1731783085867,-500.0,9.956e-05,2]
[342390442,1731783085876,-500.0,9.956e-05,2]
[342390443,1731783085886,-569.24,9.956e-05,2]
[342390444,1731783085896,-501.36,9.956e-05,2]
[342390445,1731783085905,-500.0,9.956e-05,2]
[342390446,1731783085915,-6143.88,9.956e-05,2]
[342390447,1731783085924,-500.0,9.956e-05,2]
[342390448,1731783085933,-789.18,9.956e-05,2]
[342390449,1731783085943,-1006.73377055,9.957e-05,2]
[342390450,1731783085953,-500.0,9.959e-05,2]
[342390451,1731783085963,-500.0,9.959e-05,2]
[342390452,1731783085973,-916.24,9.959e-05,2]
[342390453,1731783085982,-500.0,9.959e-05,2]
[342390454,1731783085992,-500.0,9.959e-05,2]
[342390455,1731783086002,-1006.73377055,9.959e-05,2]
[342390456,1731783086011,-1006.73377055,9.96e-05,2]
[342390457,1731783086020,-4026.93508216,9.96e-05,2]
[342390458,1731783086030,-4026.93508216,9.961e-05,2]
[342390459,1731783086039,-304.35261776,9.961e-05,2]
[342390460,1731783086049,-150.0,9.962e-05,2]
[342390461,1731783086059,-150.0,9.965e-05,2]
[342390462,1731783086068,-150.0,9.967e-05,2]
[342390463,1731783086077,-150.0,9.972e-05,2]
[342390464,1731783086087,-500.0,9.972e-05,2]
[342390465,1731783086095,-304.35261776,9.973e-05,2]
[342390466,1731783086105,-513.0,9.973e-05,2]
[342390467,1731783086114,-150.0,9.973e-05,2]
[342390468,1731783086124,-150.0,9.973e-05,2]
[342390469,1731783086133,-4026.93508216,9.974e-05,2]
[342390470,1731783086143,-150.0,9.975e-05,2]
[342390471,1731783086152,-4026.93508216,9.975e-05,2]
[342390472,1731783086162,-150.0,9.981e-05,2]
[342390473,1731783086172,-150.0,9.985e-05,2]
[342390474,1731783086181,-150.0,9.987e-05,2]
[342390475,1731783086191,-304.35261776,9.987e-05,2]
[342390476,1731783086200,-417.4685821,9.988e-05,2]
[342390477,1731783086210,-1675.1272995,9.988e-05,2]
[342390478,1731783086221,-1006.73377055,9.991e-05,2]
[342390479,1731783086230,-150.0,9.992e-05,2]
[342390480,1731783086239,-304.35261776,9.993e-05,2]
[342390481,1731783086248,-150.0,9.993e-05,2]
[342390482,1731783086258,-452.059412,9.993e-05,2]
[342390483,1731783086267,-486.6502419,9.993e-05,2]
[342390484,1731783086278,-521.2410718,9.993e-05,2]
[342390485,1731783086287,-1813.9258724,9.993e-05,2]
[342390486,1731783086296,-1952.7244454,9.993e-05,2]
[342390487,1731783086305,-2091.5230184,9.993e-05,2]
[342390488,1731783086314,-1500.0,9.994e-05,2]
[342390489,1731783086324,-304.35261776,9.995e-05,2]
[342390490,1731783086334,-4026.93508216,9.996e-05,2]
[342390491,1731783086344,-12391.27778596,9.996e-05,2]
[342390492,1731783086354,-500.0,9.997e-05,2]
[342390493,1731783086364,-500.0,9.997e-05,2]
[342390494,1731783086374,-750.49,9.997e-05,2]
[342390495,1731783086383,-583.21,9.997e-05,2]
[342390496,1731783086392,-1278.31,9.997e-05,2]
[342390497,1731783086401,-591.71,9.997e-05,2]
[342390498,1731783086411,-150.0,9.997e-05,2]
[342390499,1731783086420,-527.68,9.997e-05,2]
[342390500,1731783086430,-500.0,9.997e-05,2]
[342390501,1731783086439,-500.0,9.997e-05,2]
[342390502,1731783086450,-957.6,9.997e-05,2]
[342390503,1731783086462,-1242.7,9.997e-05,2]
[342390504,1731783086473,-633.88,9.997e-05,2]
[342390505,1731783086483,-500.0,9.997e-05,2]
[342390506,1731783086494,-235.08,9.997e-05,2]
[342390507,1731783086504,-500.0,9.997e-05,2]
[342390508,1731783086514,-500.0,9.997e-05,2]
[342390509,1731783086523,-500.0,9.997e-05,2]
[342390510,1731783086534,-500.0,9.997e-05,2]
[342390511,1731783086545,-500.0,9.997e-05,2]
[342390512,1731783086554,-500.0,9.997e-05,2]
[342390513,1731783086563,-500.0,9.997e-05,2]
[342390514,1731783086572,-500.0,9.997e-05,2]
[342390515,1731783086582,-500.0,9.997e-05,2]
[342390516,1731783086591,-500.0,9.997e-05,2]
[342390517,1731783086601,-2324.54,9.997e-05,2]
[342390518,1731783086611,-500.0,9.997e-05,2]
[342390519,1731783086621,-500.0,9.997e-05,2]
[342390520,1731783086630,-963.08,9.997e-05,2]
[342390521,1731783086640,-500.0,9.997e-05,2]
[342390522,1731783086650,-500.0,9.997e-05,2]
[342390523,1731783086659,-1509.5,9.997e-05,2]
[342390524,1731783086669,-660.42,9.997e-05,2]
[342390525,1731783086679,-738.46,9.997e-05,2]
[342390526,1731783086689,-2629.68,9.997e-05,2]
[342390527,1731783086699,-1656.97,9.997e-05,2]
[342390528,1731783086708,-500.0,9.997e-05,2]
[342390529,1731783086719,-500.0,9.997e-05,2]
[342390530,1731783086729,-500.0,9.997e-05,2]
[342390531,1731783086738,-500.0,9.997e-05,2]
[342390532,1731783086748,-500.0,9.997e-05,2]
[342390533,1731783086758,-508.24,9.997e-05,2]
[342390534,1731783086768,-3098.32,9.997e-05,2]
[342390535,1731783086778,-500.0,9.997e-05,2]
[342390536,1731783086789,-550.63,9.997e-05,2]
[342390537,1731783086798,-500.0,9.997e-05,2]
[342390538,1731783086808,-223.66,9.997e-05,2]
[342390539,1731783086817,-500.0,9.997e-05,2]
[342390540,1731783086827,-500.0,9.997e-05,2]
[342390541,1731783086836,-3230.29,9.997e-05,2]
[342390542,1731783086846,-500.0,9.997e-05,2]
[342390543,1731783086855,-500.0,9.997e-05,2]
[342390544,1731783086865,-500.0,9.997e-05,2]
[342390545,1731783086876,-500.0,9.997e-05,2]
[342390546,1731783086887,-500.0,9.997e-05,2]
[342390547,1731783086898,-500.0,9.997e-05,2]
[342390548,1731783086909,-500.0,9.997e-05,2]
[342390549,1731783086923,-698.16,9.997e-05,2]
[342390550,1731783086934,-500.0,9.997e-05,2]
[342390551,1731783086945,-500.0,9.997e-05,2]
[342390552,1731783086956,-504.63,9.997e-05,2]
[342390553,1731783086964,-537.98,9.997e-05,2]
[342390554,1731783086975,-500.0,9.997e-05,2]
[342390555,1731783086987,-1091.56,9.997e-05,2]
[342390556,1731783086999,-602.51,9.997e-05,2]
[342390557,1731783087011,-894.68,9.997e-05,2]
[342390558,1731783087024,-458.16,9.997e-05,2]
[342390559,1731783087035,-500.0,9.997e-05,2]
[342390560,1731783087047,-500.0,9.997e-05,2]
[342390561,1731783087057,-500.0,9.997e-05,2]
[342390562,1731783087068,-500.0,9.997e-05,2]
[342390563,1731783087079,-500.0,9.997e-05,2]
[342390564,1731783087089,-217426.83988901,9.998e-05,2]
[342390565,1731783087099,-500.0,9.998e-05,2]
[342390566,1731783087109,-196.61046614,9.998e-05,2]
[342390567,1731783087119,-629.98,9.998e-05,2]
[342390568,1731783087129,-679.55,9.998e-05,2]
[342390569,1731783087140,-750.49,9.998e-05,2]
[342390570,1731783087149,-750.49,9.998e-05,2]
[342390571,1731783087159,-750.49,9.998e-05,2]
[342390572,1731783087169,-750.49,9.998e-05,2]
[342390573,1731783087178,-750.65,9.998e-05,2]
[342390574,1731783087190,-500.0,9.998e-05,2]
[342390575,1731783087201,-512.84,9.998e-05,2]
[342390576,1731783087212,-1278.31,9.998e-05,2]
[342390577,1731783087226,-1278.31,9.998e-05,2]
[342390578,1731783087237,-1278.31,9.998e-05,2]
[342390579,1731783087247,-1278.31,9.998e-05,2]
[342390580,1731783087256,-1278.53433832,9.998e-05,2]
[342390581,1731783087266,-591.71,9.998e-05,2]
[342390582,1731783087275,-591.71,9.998e-05,2]
[342390583,1731783087284,-591.71,9.998e-05,2]
[342390584,1731783087293,-591.71,9.998e-05,2]
[342390585,1731783087302,-591.77,9.998e-05,2]
[342390586,1731783087311,-500.0,9.998e-05,2]
[342390587,1731783087320,-527.68,9.998e-05,2]
[342390588,1731783087330,-527.68,9.998e-05,2]
[342390589,1731783087339,-527.68,9.998e-05,2]
[342390590,1731783087352,-527.68,9.998e-05,2]
[342390591,1731783087361,-527.71630621,9.998e-05,2]
[342390592,1731783087370,-500.0,9.998e-05,2]
[342390593,1731783087379,-323.27162337,9.998e-05,2]
[342390594,1731783087388,-650.09,9.998e-05,2]
[342390595,1731783087397,-957.6,9.998e-05,2]
[342390596,1731783087406,-957.6,9.998e-05,2]
[342390597,1731783087416,-957.6,9.998e-05,2]
[342390598,1731783087425,-957.6,9.998e-05,2]
[342390599,1731783087435,-957.68,9.998e-05,2]
[342390600,1731783087444,-500.0,9.998e-05,2]
[342390601,1731783087454,-500.0,9.998e-05,2]
[342390602,1731783087467,-500.0,9.998e-05,2]
[342390603,1731783087477,-500.0,9.998e-05,2]
[342390604,1731783087487,-500.0,9.998e-05,2]
[342390605,1731783087497,-500.0,9.998e-05,2]
[342390606,1731783087505,-500.0,9.998e-05,2]
[342390607,1731783087515,-500.0,9.998e-05,2]
[342390608,1731783087524,-500.0,9.998e-05,2]
[342390609,1731783087535,-500.0,9.998e-05,2]
[342390610,1731783087545,-500.0,9.998e-05,2]
[342390611,1731783087555,-500.0,9.998e-05,2]
[342390612,1731783087564,-457.57,9.998e-05,2]
[342390613,1731783087574,-500.0,9.998e-05,2]
[342390614,1731783087584,-500.0,9.998e-05,2]
[342390615,1731783087593,-963.08,9.998e-05,2]
[342390616,1731783087602,-569.24,9.998e-05,2]
[342390617,1731783087612,-501.36,9.998e-05,2]
[342390618,1731783087622,-660.42,9.998e-05,2]
[342390619,1731783087631,-738.46,9.998e-05,2]
[342390620,1731783087640,-2629.68,9.998e-05,2]
[342390621,1731783087650,-1656.97,9.998e-05,2]
[342390622,1731783087659,-500.0,9.998e-05,2]
[342390623,1731783087668,-500.0,9.998e-05,2]
[342390624,1731783087677,-500.0,9.998e-05,2]
[342390625,1731783087687,-500.0,9.998e-05,2]
[342390626,1731783087696,-249.44,9.998e-05,2]
[342390627,1731783087705,-508.24,9.998e-05,2]
[342390628,1731783087714,-550.63,9.998e-05,2]
[342390629,1731783087729,-500.0,9.998e-05,2]
[342390630,1731783087739,-500.0,9.998e-05,2]
[342390631,1731783087748,-250.38,9.998e-05,2]
[342390632,1731783087757,-359.55,9.998e-05,2]
[342390633,1731783087766,-500.0,9.998e-05,2]
[342390634,1731783087776,-500.0,9.998e-05,2]
[342390635,1731783087785,-505.75,9.998e-05,2]
[342390636,1731783087794,-500.0,9.998e-05,2]
[342390637,1731783087803,-500.0,9.998e-05,2]
[342390638,1731783087813,-500.0,9.998e-05,2]
[342390639,1731783087822,-6143.88,9.998e-05,2]
[342390640,1731783087832,-500.0,9.998e-05,2]
[342390641,1731783087841,-500.0,9.998e-05,2]
[342390642,1731783087850,-698.16,9.998e-05,2]
[342390643,1731783087859,-698.16,9.998e-05,2]
[342390644,1731783087869,-500.0,9.998e-05,2]
[342390645,1731783087879,-500.0,9.998e-05,2]
[342390646,1731783087888,-537.98,9.998e-05,2]
[342390647,1731783087898,-537.98,9.998e-05,2]
[342390648,1731783087907,-500.0,9.998e-05,2]
[342390649,1731783087917,-1091.56,9.998e-05,2]
[342390650,1731783087927,-185.12,9.998e-05,2]
[342390651,1731783087936,-894.68,9.998e-05,2]
[342390652,1731783087945,-789.18,9.998e-05,2]
[342390653,1731783087955,-500.0,9.998e-05,2]
[342390654,1731783087965,-500.0,9.998e-05,2]
[342390655,1731783087976,-500.0,9.998e-05,2]
[342390656,1731783087985,-500.0,9.998e-05,2]
[342390657,1731783087995,-500.0,9.998e-05,2]
[342390658,1731783088004,-4465.06518757,9.999e-05,2]
[342390659,1731783088013,-8500.0,9.999e-05,2]
[342390660,1731783088022,-500.0,9.999e-05,2]
[342390661,1731783088032,-500.0,9.999e-05,2]
[342390662,1731783088041,-500.0,9.999e-05,2]
[342390663,1731783088051,-500.0,9.999e-05,2]
[342390664,1731783088060,-500.0,9.999e-05,2]
[342390665,1731783088072,-500.0,9.999e-05,2]
[342390666,1731783088081,-504.06,9.999e-05,2]
[342390667,1731783088091,-629.98,9.999e-05,2]
[342390668,1731783088100,-629.98,9.999e-05,2]
[342390669,1731783088109,-629.98,9.999e-05,2]
[342390670,1731783088118,-629.98,9.999e-05,2]
[342390671,1731783088128,-629.98,9.999e-05,2]
[342390672,1731783088137,-629.98,9.999e-05,2]
[342390673,1731783088147,-629.98,9.999e-05,2]
[342390674,1731783088156,-629.98,9.999e-05,2]
[342390675,1731783088165,-629.98,9.999e-05,2]
[342390676,1731783088174,-630.14165262,9.999e-05,2]
[342390677,1731783088183,-500.0,9.999e-05,2]
[342390678,1731783088193,-500.0,9.999e-05,2]
[342390679,1731783088202,-500.0,9.999e-05,2]
[342390680,1731783088211,-500.0,9.999e-05,2]
[342390681,1731783088222,-500.0,9.999e-05,2]
[342390682,1731783088231,-500.0,9.999e-05,2]
[342390683,1731783088240,-248.47,9.999e-05,2]
[342390684,1731783088250,-500.0,9.999e-05,2]
[342390685,1731783088259,-500.0,9.999e-05,2]
[342390686,1731783088268,-500.0,9.999e-05,2]
[342390687,1731783088277,-679.55,9.999e-05,2]
[342390688,1731783088286,-500.0,9.999e-05,2]
[342390689,1731783088295,-679.55,9.999e-05,2]
[342390690,1731783088303,-500.0,9.999e-05,2]
[342390691,1731783088312,-500.0,9.999e-05,2]
[342390692,1731783088321,-679.55,9.999e-05,2]
[342390693,1731783088331,-530.31,9.999e-05,2]
[342390694,1731783088340,-679.55,9.999e-05,2]
[342390695,1731783088349,-679.55,9.999e-05,2]
[342390696,1731783088359,-679.55,9.999e-05,2]
[342390697,1731783088368,-679.55,9.999e-05,2]
[342390698,1731783088377,-679.55,9.999e-05,2]
[342390699,1731783088387,-679.55,9.999e-05,2]
[342390700,1731783088396,-679.55,9.999e-05,2]
[342390701,1731783088406,-679.55,9.999e-05,2]
[342390702,1731783088416,-679.66,9.999e-05,2]
[342390703,1731783088425,-500.0,9.999e-05,2]
[342390704,1731783088434,-500.0,9.999e-05,2]
[342390705,1731783088443,-646.31,9.999e-05,2]
[342390706,1731783088456,-512.84,9.999e-05,2]
[342390707,1731783088467,-512.84,9.999e-05,2]
[342390708,1731783088476,-512.84,9.999e-05,2]
[342390709,1731783088485,-512.84,9.999e-05,2]
[342390710,1731783088495,-512.84,9.999e-05,2]
[342390711,1731783088504,-512.84,9.999e-05,2]
[342390712,1731783088512,-512.84,9.999e-05,2]
[342390713,1731783088522,-512.84,9.999e-05,2]
[342390714,1731783088532,-512.84,9.999e-05,2]
[342390715,1731783088541,-512.84,9.999e-05,2]
[342390716,1731783088550,-512.84,9.999e-05,2]
[342390717,1731783088559,-512.93109382,9.999e-05,2]
[342390718,1731783088568,-500.0,9.999e-05,2]
[342390719,1731783088577,-500.0,9.999e-05,2]
[342390720,1731783088587,-500.0,9.999e-05,2]
[342390721,1731783088596,-500.0,9.999e-05,2]
[342390722,1731783088605,-500.0,9.999e-05,2]
[342390723,1731783088614,-500.0,9.999e-05,2]
[342390724,1731783088623,-500.0,9.999e-05,2]
[342390725,1731783088632,-500.0,9.999e-05,2]
[342390726,1731783088642,-500.0,9.999e-05,2]
[342390727,1731783088651,-509.09,9.999e-05,2]
[342390728,1731783088660,-500.0,9.999e-05,2]
[342390729,1731783088669,-500.0,9.999e-05,2]
[342390730,1731783088678,-500.0,9.999e-05,2]
[342390731,1731783088688,-500.0,9.999e-05,2]
[342390732,1731783088699,-500.0,9.999e-05,2]
[342390733,1731783088708,-315.96,9.999e-05,2]
[342390734,1731783088718,-443.71229162,9.999e-05,2]
[342390735,1731783088728,-650.09,9.999e-05,2]
[342390736,1731783088737,-650.09,9.999e-05,2]
[342390737,1731783088747,-650.09,9.999e-05,2]
[342390738,1731783088756,-650.09,9.999e-05,2]
[342390739,1731783088765,-650.09,9.999e-05,2]
[342390740,1731783088775,-650.09,9.999e-05,2]
[342390741,1731783088784,-650.09,9.999e-05,2]
[342390742,1731783088794,-650.09,9.999e-05,2]
[342390743,1731783088803,-650.09,9.999e-05,2]
[342390744,1731783088812,-650.09,9.999e-05,2]
[342390745,1731783088822,-650.09,9.999e-05,2]
[342390746,1731783088831,-650.1028654,9.999e-05,2]
[342390747,1731783088841,-500.0,9.999e-05,2]
[342390748,1731783088851,-500.0,9.999e-05,2]
[342390749,1731783088860,-500.0,9.999e-05,2]
[342390750,1731783088869,-500.0,9.999e-05,2]
[342390751,1731783088878,-500.0,9.999e-05,2]
[342390752,1731783088887,-500.0,9.999e-05,2]
[342390753,1731783088896,-457.12,9.999e-05,2]
[342390754,1731783088906,-500.0,9.999e-05,2]
[342390755,1731783088915,-500.0,9.999e-05,2]
[342390756,1731783088925,-500.0,9.999e-05,2]
[342390757,1731783088934,-209.85,9.999e-05,2]
[342390758,1731783088943,-500.0,9.999e-05,2]
[342390759,1731783088952,-500.0,9.999e-05,2]
[342390760,1731783088962,-193.61,9.999e-05,2]
[342390761,1731783088972,-1242.7,9.999e-05,2]
[342390762,1731783088982,-1242.7,9.999e-05,2]
[342390763,1731783088991,-1242.7,9.999e-05,2]
[342390764,1731783089000,-1242.7,9.999e-05,2]
[342390765,1731783089009,-1242.7,9.999e-05,2]
[342390766,1731783089018,-1242.7,9.999e-05,2]
[342390767,1731783089027,-1242.7,9.999e-05,2]
[342390768,1731783089036,-1242.7,9.999e-05,2]
[342390769,1731783089045,-1242.7,9.999e-05,2]
[342390770,1731783089055,-1242.7,9.999e-05,2]
[342390771,1731783089064,-1242.7,9.999e-05,2]
[342390772,1731783089074,-1242.7,9.999e-05,2]
[342390773,1731783089083,-1242.90328076,9.999e-05,2]
[342390774,1731783089092,-500.0,9.999e-05,2]
[342390775,1731783089101,-579.85,9.999e-05,2]
[342390776,1731783089110,-633.88,9.999e-05,2]
[342390777,1731783089120,-633.88,9.999e-05,2]
[342390778,1731783089129,-633.88,9.999e-05,2]
[342390779,1731783089138,-633.88,9.999e-05,2]
[342390780,1731783089148,-633.88,9.999e-05,2]
[342390781,1731783089157,-633.88,9.999e-05,2]
[342390782,1731783089166,-633.88,9.999e-05,2]
[342390783,1731783089175,-633.88,9.999e-05,2]
[342390784,1731783089184,-633.88,9.999e-05,2]
[342390785,1731783089193,-633.88,9.999e-05,2]
[342390786,1731783089204,-633.88,9.999e-05,2]
[342390787,1731783089213,-633.88,9.999e-05,2]
[342390788,1731783089224,-634.08,9.999e-05,2]
[342390789,1731783089234,-500.0,9.999e-05,2]
[342390790,1731783089243,-500.0,9.999e-05,2]
[342390791,1731783089253,-500.0,9.999e-05,2]
[342390792,1731783089262,-500.0,9.999e-05,2]
[342390793,1731783089272,-500.0,9.999e-05,2]
[342390794,1731783089282,-500.0,9.999e-05,2]
[342390795,1731783089291,-500.0,9.999e-05,2]
[342390796,1731783089300,-500.0,9.999e-05,2]
[342390797,1731783089310,-500.0,9.999e-05,2]
[342390798,1731783089319,-395.93,9.999e-05,2]
[342390799,1731783089329,-500.0,9.999e-05,2]
[342390800,1731783089339,-500.0,9.999e-05,2]
[342390801,1731783089348,-500.0,9.999e-05,2]
[342390802,1731783089357,-500.0,9.999e-05,2]
[342390803,1731783089366,-500.0,9.999e-05,2]
[342390804,1731783089491,-500.0,9.999e-05,2]
[342390805,1731783089513,-500.0,9.999e-05,2]
[342390806,1731783089523,-223.23,9.999e-05,2]
[342390807,1731783089533,-500.0,9.999e-05,2]
[342390808,1731783089545,-500.0,9.999e-05,2]
[342390809,1731783089555,-500.0,9.999e-05,2]
[342390810,1731783089565,-500.0,9.999e-05,2]
[342390811,1731783089574,-500.0,9.999e-05,2]
[342390812,1731783089583,-434.25,9.999e-05,2]
[342390813,1731783089593,-500.0,9.999e-05,2]
[342390814,1731783089602,-500.0,9.999e-05,2]
[342390815,1731783089612,-500.0,9.999e-05,2]
[342390816,1731783089622,-500.0,9.999e-05,2]
[342390817,1731783089631,-500.0,9.999e-05,2]
[342390818,1731783089640,-500.0,9.999e-05,2]
[342390819,1731783089650,-500.0,9.999e-05,2]
[342390820,1731783089659,-500.0,9.999e-05,2]
[342390821,1731783089669,-500.0,9.999e-05,2]
[342390822,1731783089678,-500.0,9.999e-05,2]
[342390823,1731783089688,-500.0,9.999e-05,2]
[342390824,1731783089697,-500.0,9.999e-05,2]
[342390825,1731783089707,-500.0,9.999e-05,2]
[342390826,1731783089718,-500.0,9.999e-05,2]
[342390827,1731783089727,-477.94,9.999e-05,2]
[342390828,1731783089736,-500.0,9.999e-05,2]
[342390829,1731783089746,-549.2,9.999e-05,2]
[342390830,1731783089755,-500.0,9.999e-05,2]
[342390831,1731783089764,-482.73,9.999e-05,2]
[342390832,1731783089774,-500.0,9.999e-05,2]
[342390833,1731783089784,-500.0,9.999e-05,2]
[342390834,1731783089793,-500.0,9.999e-05,2]
[342390835,1731783089803,-500.0,9.999e-05,2]
[342390836,1731783089812,-500.0,9.999e-05,2]
[342390837,1731783089821,-500.0,9.999e-05,2]
[342390838,1731783089830,-500.0,9.999e-05,2]
[342390839,1731783089839,-500.0,9.999e-05,2]
[342390840,1731783089848,-460.49,9.999e-05,2]
[342390841,1731783089857,-500.0,9.999e-05,2]
[342390842,1731783089866,-500.0,9.999e-05,2]
[342390843,1731783089876,-390.02,9.999e-05,2]
[342390844,1731783089885,-500.0,9.999e-05,2]
[342390845,1731783089894,-500.0,9.999e-05,2]
[342390846,1731783089903,-500.0,9.999e-05,2]
[342390847,1731783089912,-500.0,9.999e-05,2]
[342390848,1731783089923,-500.0,9.999e-05,2]
[342390849,1731783089933,-265.15,9.999e-05,2]
[342390850,1731783089942,-244.18,9.999e-05,2]
[342390851,1731783089952,-500.0,9.999e-05,2]
[342390852,1731783089962,-500.0,9.999e-05,2]
[342390853,1731783089972,-500.0,9.999e-05,2]
[342390854,1731783089981,-500.0,9.999e-05,2]
[342390855,1731783089991,-500.0,9.999e-05,2]
[342390856,1731783090001,-500.0,9.999e-05,2]
[342390857,1731783090010,-500.0,9.999e-05,2]
[342390858,1731783090019,-524.03,9.999e-05,2]
[342390859,1731783090029,-500.0,9.999e-05,2]
[342390860,1731783090038,-545.54,9.999e-05,2]
[342390861,1731783090048,-500.0,9.999e-05,2]
[342390862,1731783090057,-500.0,9.999e-05,2]
[342390863,1731783090066,-634.36466694,9.999e-05,2]
[342390864,1731783090076,-500.0,9.999e-05,2]
[342390865,1731783090085,-500.0,9.999e-05,2]
[342390866,1731783090094,-157.03,9.999e-05,2]
[342390867,1731783090104,-500.0,9.999e-05,2]
[342390868,1731783090113,-500.0,9.999e-05,2]
[342390869,1731783090122,-500.0,9.999e-05,2]
[342390870,1731783090132,-500.0,9.999e-05,2]
[342390871,1731783090141,-500.0,9.999e-05,2]
[342390872,1731783090150,-375.89,9.999e-05,2]
[342390873,1731783090159,-2324.54,9.999e-05,2]
[342390874,1731783090168,-2324.54,9.999e-05,2]